bitfinex-derivatives/quotes_SOLF0:USTF0_20250130
["timestamp","ask_amount","ask_price","bid_price","bid_amount"]
[1738250019768,0.02693546,243.79,243.74,0.0284683]
[1738250019968,4.1014,243.83,243.72,4.1032]
[1738250020170,0.02659427,243.79,243.74,0.02808413]
[1738250021371,2.0341,243.9,243.74,0.02808413]
[1738250021764,2.0341,243.9,243.73,28.25471778]
[1738250022572,0.03130883,243.84,243.8,4.1018]
[1738250022973,0.03130883,243.84,243.79,0.02914322]
[1738250026070,4.1017,243.81,243.79,0.02914322]
[1738250026267,0.03130883,243.84,243.79,0.02914322]
[1738250026672,0.03130883,243.84,243.82,4.1015]
[1738250026875,0.03130883,243.84,243.79,0.02914322]
[1738250027072,0.03130883,243.84,243.83,4.1013]
[1738250027876,0.03130883,243.84,243.79,0.02914322]
[1738250029680,0.03130883,243.84,243.79,4.13104322]
[1738250030177,0.03130883,243.84,243.79,0.02914322]
[1738250031079,0.03130883,243.84,243.8,4.1018]
[1738250032172,0.03130883,243.84,243.81,4.1016]
[1738250032578,4.1013,243.83,243.79,0.02914322]
[1738250032977,0.03130883,243.84,243.79,0.02914322]
[1738250033179,4.1015,243.82,243.79,0.02914322]
[1738250033380,0.03130883,243.84,243.79,0.02914322]
[1738250033773,4.1018,243.8,243.79,0.02914322]
[1738250034773,0.03130883,243.84,243.79,0.02914322]
[1738250035374,0.03130883,243.84,243.79,4.13114322]
[1738250035583,0.03130883,243.84,243.79,0.02914322]
[1738250035886,28.25471778,244.02,243.8,28.25471778]
[1738250036087,28.25471778,244.02,243.8,30.27261778]
[1738250036378,28.25471778,243.98,243.83,4.1013]
[1738250036578,4.1007,243.87,243.79,3.02]
[1738250036775,28.25471778,243.94,243.79,3.02]
[1738250037184,0.02772891,243.89,243.84,0.03044617]
[1738250038382,0.02772891,243.89,243.84,4.13154617]
[1738250039376,4.1007,243.87,243.84,0.03044617]
[1738250039582,0.02772891,243.89,243.84,0.03044617]
[1738250041386,0.02772891,243.89,243.85,4.1009]
[1738250041588,0.02772891,243.89,243.84,0.03044617]
[1738250042086,0.02772891,243.89,243.87,4.1006]
[1738250042486,10.3012,244.03,243.96,4.099]
[1738250042682,6.2032,244.03,243.88,3.02]
[1738250043085,4.0983,244.01,243.88,3.02]
[1738250043482,4.0983,244.01,243.94,4.0994]
[1738250043786,0.02997876,243.97,243.92,0.0267066]
[1738250048291,0.02997876,243.97,243.93,4.0997]
[1738250048486,0.02997876,243.97,243.92,0.0267066]
[1738250048890,0.02997876,243.97,243.93,4.0995]
[1738250049088,17.41387098,244.1,243.92,0.0267066]
[1738250049293,17.41387098,244.1,243.93,17.41387098]
[1738250049496,17.41387098,244.1,243.93,2.737]
[1738250049890,17.41387098,244.15,243.94,17.41387098]
[1738250050094,17.41387098,244.2,243.99,17.41387098]
[1738250050290,0.02990129,244.07,244.02,0.03053877]
[1738250050495,4.1576,244.21,244.03,17.41387098]
[1738250050790,4.1576,244.21,244.05,28.25087463]
[1738250050993,4.0951,244.21,244.11,4.0965]
[1738250051195,2.0009,244.25,244.06,1.2767]
[1738250051391,16.89785187,244.26,244.06,1.2767]
[1738250051695,0.02833963,244.18,244.13,0.02994787]
[1738250054594,0.02833963,244.18,244.14,4.096]
[1738250054896,0.02833963,244.18,244.13,0.02994787]
[1738250056595,4.096,244.15,244.13,0.02994787]
[1738250057202,4.0968,244.1,244.01,3.0]
[1738250057398,28.25087463,244.15,244.01,3.0]
[1738250057599,2.1304,244.14,244.01,3.0]
[1738250057795,4.0964,244.13,244.01,3.0]
[1738250058198,2.1304,244.14,244.04,4.0978]
[1738250058502,0.02653673,244.09,244.05,0.02896195]
[1738250058801,0.02653673,244.09,244.06,4.0974]
[1738250058997,0.02653673,244.09,244.05,0.02896195]
[1738250059205,4.2942,244.26,244.05,28.27983658]
[1738250059396,4.2942,244.26,244.09,28.25087463]
[1738250060102,4.0951,244.21,244.14,4.0961]
[1738250060298,4.2942,244.26,244.09,28.25087463]
[1738250060500,0.02876532,244.2,244.15,0.02989666]
[1738250061707,4.0956,244.17,244.15,0.02989666]
[1738250063002,4.0964,244.13,244.07,4.0972]
[1738250063198,30.23747463,244.19,244.01,28.25087463]
[1738250063608,30.23747463,244.19,244.0,2.98]
[1738250064206,0.02612864,244.12,244.07,0.0280121]
[1738250064905,4.0968,244.11,244.07,0.0280121]
[1738250065098,0.02612864,244.12,244.07,0.0280121]
[1738250066398,4.0971,244.09,244.07,0.0280121]
[1738250066602,0.02612864,244.12,244.07,0.0280121]
[1738250067505,4.0971,244.08,244.07,0.0280121]
[1738250067711,0.02612864,244.12,244.07,0.0280121]
[1738250068807,4.097,244.09,244.07,0.0280121]
[1738250069211,0.02612864,244.12,244.07,0.0280121]
[1738250070612,4.097,244.09,244.07,0.0280121]
[1738250071111,0.02612864,244.12,244.07,0.0280121]
[1738250071112,0.02612864,244.12,244.08,20.35243239]
[1738250071313,1.9866,244.19,244.08,37.74486478]
[1738250071508,4.0949,244.22,244.17,4.0956]
[1738250071908,4.2942,244.26,244.15,17.39243239]
[1738250072408,0.02770528,244.23,244.18,0.02953403]
[1738250072612,4.0951,244.2,244.18,0.02953403]
[1738250073002,0.02770528,244.23,244.18,0.02953403]
[1738250073307,4.0953,244.19,244.18,0.02953403]
[1738250073905,4.0951,244.21,244.18,0.02953403]
[1738250074110,0.02770528,244.23,244.18,0.02953403]
[1738250074612,0.02770528,244.23,244.2,28.24343177]
[1738250075007,0.02770528,244.23,244.21,4.0949]
[1738250076010,0.02770528,244.23,244.2,28.24343177]
[1738250076312,0.02770528,244.23,244.18,2.98953403]
[1738250076611,0.02770528,244.23,244.18,0.02953403]
[1738250076813,0.02770528,244.23,244.18,2.98953403]
[1738250077310,0.02770528,244.23,244.18,0.02953403]
[1738250077510,4.0952,244.2,244.18,0.02953403]
[1738250079013,4.0961,244.15,244.12,28.24343177]
[1738250079210,30.37683177,244.29,244.08,28.24343177]
[1738250080415,0.0292407,244.21,244.16,2.876e-05]
[1738250080615,4.0956,244.17,244.16,2.876e-05]
[1738250083014,0.0292407,244.21,244.16,2.876e-05]
[1738250083919,4.0956,244.17,244.16,2.876e-05]
[1738250084319,0.0292407,244.21,244.16,2.876e-05]
[1738250085320,4.0956,244.18,244.16,2.876e-05]
[1738250085525,0.0292407,244.21,244.16,2.876e-05]
[1738250085812,4.0956,244.17,244.16,2.876e-05]
[1738250095917,0.0292407,244.21,244.16,2.876e-05]
[1738250096224,2.1524,244.28,244.19,17.38345188]
[1738250096424,2.1524,244.28,244.2,2.9]
[1738250097023,4.0942,244.26,244.21,4.095]
[1738250097323,4.12407461,244.26,244.21,4.12160179]
[1738250097524,4.12407461,244.26,244.21,0.02660179]
[1738250099228,0.02987461,244.26,244.23,17.38345188]
[1738250099826,0.02987461,244.26,244.24,4.0945]
[1738250100231,0.02987461,244.26,244.21,0.02660179]
[1738250101325,0.02987461,244.26,244.23,17.38345188]
[1738250101734,0.02987461,244.26,244.25,4.0943]
[1738250102038,0.02987461,244.26,244.23,17.38345188]
[1738250102231,0.02987461,244.26,244.21,0.02660179]
[1738250102934,4.0948,244.22,244.21,0.02660179]
[1738250103329,0.02987461,244.26,244.12,2.9]
[1738250103330,4.0704,244.25,244.12,2.9]
[1738250103533,2.0309,244.24,244.12,2.9]
[1738250104332,2.0309,244.24,244.16,17.38345188]
[1738250104532,0.03111243,244.2,244.16,0.02663407]
[1738250104734,4.0956,244.17,244.16,0.02663407]
[1738250105229,0.03111243,244.2,244.16,0.02663407]
[1738250106032,4.0956,244.17,244.16,0.02663407]
[1738250106334,0.03111243,244.2,244.1,17.38345188]
[1738250107130,2.0309,244.24,244.19,17.38345188]
[1738250107336,2.17,244.34,244.23,17.38345188]
[1738250107533,4.1691,244.34,244.23,17.38345188]
[1738250108337,4.0943,244.25,244.23,17.38345188]
[1738250108630,4.0943,244.25,244.2,17.38345188]
[1738250108631,0.0302798,244.31,244.26,0.02638442]
[1738250108831,4.1691,244.34,244.2,17.38345188]
[1738250109032,4.095,244.21,244.2,17.38345188]
[1738250110636,0.03110618,244.23,244.2,17.38345188]
[1738250110832,4.1691,244.34,244.2,17.38345188]
[1738250111033,4.1691,244.34,244.27,17.38345188]
[1738250111836,0.02855175,244.33,244.31,17.38345188]
[1738250112140,2.1472,244.42,244.31,21.47675188]
[1738250112342,2.1472,244.42,244.35,17.38345188]
[1738250112643,2.1472,244.42,244.27,17.38345188]
[1738250113243,0.0274267,244.37,244.32,0.0314411]
[1738250113442,16.89785187,244.54,244.36,34.76690376]
[1738250113648,16.89785187,244.54,244.5,17.38345188]
[1738250114041,225.49366342,244.61,244.5,17.38345188]
[1738250114248,19.66251923,244.57,244.56,17.38345188]
[1738250114445,225.49366342,244.61,244.56,17.38345188]
[1738250114647,112.95674476,244.59,244.56,17.38345188]
[1738250115546,112.95674476,244.59,244.57,3.07575809]
[1738250115739,0.02591759,244.59,244.57,3.07575809]
[1738250115946,0.02591759,244.59,244.58,3.07575809]
[1738250116738,0.02591759,244.59,244.57,3.07575809]
[1738250117448,0.02591759,244.59,244.56,17.38345188]
[1738250118946,83.05071336,244.61,244.57,3.06260713]
[1738250119345,4.0886,244.6,244.58,3.06260713]
[1738250119750,83.05071336,244.61,244.43,17.38345188]
[1738250120050,19.42735188,244.59,244.39,156.98751991]
[1738250120345,2.0439,244.59,244.39,17.38345188]
[1738250120542,4.0896,244.53,244.4,4.0917]
[1738250120747,2.0439,244.59,244.39,17.38345188]
[1738250121047,4.0907,244.47,244.44,0.0293109]
[1738250121342,4.0907,244.47,244.39,17.38345188]
[1738250121644,4.0905,244.48,244.43,0.02631169]
[1738250121850,19.42735188,244.59,244.39,17.38345188]
[1738250122246,4.0912,244.44,244.39,17.38345188]
[1738250122747,4.0915,244.42,244.33,7.6358]
[1738250122948,4.0915,244.42,244.39,0.0305184]
[1738250123144,0.0311946,244.44,244.39,0.0305184]
[1738250123346,4.0896,244.53,244.39,0.0305184]
[1738250123542,19.42735188,244.59,244.34,2.98]
[1738250123848,19.42735188,244.59,244.4,17.38345188]
[1738250124049,4.0909,244.46,244.4,17.38345188]
[1738250124249,19.42735188,244.59,244.36,17.38345188]
[1738250124450,0.02844024,244.45,244.41,0.03038435]
[1738250124650,17.38345188,244.55,244.33,2.0051]
[1738250124848,0.02945609,244.45,244.41,0.02781182]
[1738250125043,4.0919,244.4,244.33,2.0051]
[1738250125245,0.02828351,244.45,244.37,0.02711114]
[1738250125445,17.38345188,244.51,244.37,0.02711114]
[1738250125642,4.0921,244.38,244.37,0.02711114]
[1738250126549,4.092,244.39,244.37,0.02711114]
[1738250127742,4.0904,244.49,244.37,0.02711114]
[1738250127951,4.0904,244.49,244.4,17.38345188]
[1738250128151,2.0386,244.54,244.4,17.38345188]
[1738250128351,4.0905,244.48,244.4,21.47525188]
[1738250128551,2.0386,244.54,244.4,21.47525188]
[1738250129052,0.02600947,244.49,244.45,0.03088517]
[1738250129453,4.0907,244.47,244.45,0.03088517]
[1738250129649,0.02600947,244.49,244.45,0.03088517]
[1738250130049,4.0905,244.48,244.45,0.03088517]
[1738250130351,0.02600947,244.49,244.45,0.03088517]
[1738250131855,4.0923,244.37,244.28,20.36345188]
[1738250132153,17.38345188,244.49,244.28,17.38345188]
[1738250132354,17.38345188,244.49,244.29,3.0248627]
[1738250132853,17.38345188,244.49,244.3,3.0248627]
[1738250133153,4.0921,244.38,244.37,3.4e-07]
[1738250133453,17.38345188,244.41,244.3,3.0248627]
[1738250133646,17.38345188,244.41,244.26,166.80279782]
[1738250133647,17.38345188,244.37,244.26,166.80279782]
[1738250134046,4.094,244.27,244.26,160.19669782]
[1738250134250,4.094,244.27,244.26,140.44429782]
[1738250134448,4.094,244.27,244.26,134.14309782]
[1738250134645,0.02592772,244.29,244.24,0.02852169]
[1738250135653,4.0942,244.26,244.24,0.02852169]
[1738250136254,4.0942,244.26,244.11,2.0107]
[1738250136255,2.1246,244.28,244.13,17.38345188]
[1738250136449,2.038,244.27,244.13,17.38345188]
[1738250136948,4.0951,244.21,244.13,17.38345188]
[1738250137145,2.038,244.27,244.13,17.38345188]
[1738250137349,0.02919057,244.19,244.15,0.02786902]
[1738250137551,4.0957,244.17,244.15,0.02786902]
[1738250137850,0.02919057,244.19,244.15,0.02786902]
[1738250138645,0.02919057,244.19,244.17,17.38345188]
[1738250138854,2.038,244.27,244.17,17.38345188]
[1738250139153,2.038,244.27,244.22,17.38345188]
[1738250139357,2.1246,244.28,244.22,17.38345188]
[1738250139651,2.1246,244.28,244.18,17.38345188]
[1738250140046,0.02582173,244.25,244.21,0.02887265]
[1738250140556,4.0948,244.22,244.14,17.38345188]
[1738250140758,0.02582173,244.25,244.14,17.38345188]
[1738250141252,0.02582173,244.25,244.08,17.38345188]
[1738250141452,2.1273,244.27,244.08,17.38345188]
[1738250141754,0.03073634,244.2,244.15,0.02733069]
[1738250142145,0.03073634,244.2,244.17,17.38345188]
[1738250142350,2.1273,244.27,244.17,17.38345188]
[1738250142652,2.1273,244.27,244.15,0.02733069]
[1738250143152,2.1273,244.27,244.16,17.38345188]
[1738250143358,2.1273,244.27,244.2,17.38345188]
[1738250143655,0.02781615,244.24,244.2,17.38345188]
[1738250143956,0.02781615,244.24,244.21,0.03135953]
[1738250144256,2.1273,244.27,244.16,17.38345188]
[1738250144557,4.095,244.21,244.2,0.02742855]
[1738250144761,0.02900652,244.25,244.12,17.38345188]
[1738250144955,4.0954,244.19,244.12,17.38345188]
[1738250145359,2.1273,244.27,244.12,17.38345188]
[1738250145658,2.1273,244.27,244.13,3.0034683]
[1738250146055,4.0953,244.19,244.18,0.02715801]
[1738250146255,0.02777197,244.22,244.13,3.0034683]
[1738250146860,0.02777197,244.22,244.08,17.38345188]
[1738250147159,4.0955,244.19,244.12,17.38345188]
[1738250147356,2.1273,244.27,244.13,0.02737805]
[1738250147555,0.03111298,244.18,244.13,0.02737805]
[1738250147858,4.0959,244.16,244.13,0.02737805]
[1738250148057,0.03111298,244.18,244.13,0.02737805]
[1738250149462,4.0961,244.14,244.13,0.02737805]
[1738250149657,0.03111298,244.18,244.13,0.02737805]
[1738250150460,4.12661298,244.18,244.13,0.02737805]
[1738250150660,0.03111298,244.18,244.13,0.02737805]
[1738250152258,4.0961,244.14,244.13,0.02737805]
[1738250154660,2.149,244.17,244.13,0.02737805]
[1738250154860,0.03111298,244.18,244.13,0.02737805]
[1738250155756,0.03111298,244.18,244.15,17.38345188]
[1738250156361,2.016,244.26,244.15,17.38345188]
[1738250156563,2.016,244.26,244.19,17.38345188]
[1738250157269,2.016,244.26,244.15,17.38345188]
[1738250157668,0.02656042,244.23,244.18,0.0276944]
[1738250157862,4.0954,244.19,244.18,0.0276944]
[1738250158865,0.02656042,244.23,244.18,0.0276944]
[1738250160169,4.0953,244.19,244.18,0.0276944]
[1738250160471,0.02656042,244.23,244.18,0.0276944]
[1738250160669,4.0952,244.2,244.18,0.0276944]
[1738250162170,0.02656042,244.23,244.18,0.0276944]
[1738250162869,4.0953,244.19,244.18,0.0276944]
[1738250163172,4.0953,244.19,244.18,9.44e-05]
[1738250163469,0.02656042,244.23,244.03,17.38345188]
[1738250163972,4.0969,244.1,244.04,3.00633436]
[1738250164171,17.38345188,244.25,244.04,3.00633436]
[1738250164370,17.38345188,244.25,244.05,0.02725282]
[1738250164570,17.38345188,244.25,244.05,3.00633436]
[1738250164868,0.02889262,244.17,244.13,0.0282784]
[1738250165076,0.02889262,244.17,244.05,3.00633436]
[1738250165275,17.38345188,244.12,243.98,139.60406803]
[1738250165469,2.0866,244.11,243.98,139.60406803]
[1738250166273,4.0985,244.0,243.98,139.60406803]
[1738250166477,4.0985,244.0,243.91,2.94]
[1738250166478,0.02956537,244.07,243.91,2.94]
[1738250166668,17.38345188,244.08,243.97,0.03050731]
[1738250166975,4.0988,243.98,243.97,0.03050731]
[1738250167871,4.12699924,244.01,243.97,0.03050731]
[1738250168274,0.02859924,244.01,243.97,0.03050731]
[1738250168474,4.0987,243.99,243.97,0.03050731]
[1738250170178,4.099,243.97,243.89,17.38345188]
[1738250170579,4.099,243.97,243.9,3.01626343]
[1738250170778,17.38345188,244.04,243.9,3.01626343]
[1738250171174,0.0279553,243.99,243.95,3.938e-05]
[1738250171380,4.0992,243.96,243.95,3.938e-05]
[1738250175378,4.1009,243.86,243.78,6.0872]
[1738250175581,17.38345188,243.96,243.78,1.9851]
[1738250175781,2.127,243.95,243.78,1.9851]
[1738250176083,2.127,243.95,243.8,17.38345188]
[1738250176478,0.03114916,243.9,243.85,0.02917002]
[1738250177379,0.03114916,243.9,243.86,3.02321427]
[1738250177885,0.03114916,243.9,243.87,3.02321427]
[1738250178281,0.03114916,243.9,243.88,3.02321427]
[1738250178782,0.03114916,243.9,243.89,3.02321427]
[1738250179185,0.03114916,243.9,243.86,3.02321427]
[1738250179783,0.03114916,243.9,243.87,3.02321427]
[1738250179981,0.03114916,243.9,243.87,1.427e-05]
[1738250180183,0.03114916,243.9,243.74,307.32153113]
[1738250180382,17.38345188,243.92,243.74,307.32153113]
[1738250181278,4.1015,243.83,243.81,0.03018377]
[1738250181884,4.1015,243.83,243.81,8.377e-05]
[1738250182782,4.12889563,243.85,243.81,8.377e-05]
[1738250182982,0.02769563,243.85,243.81,8.377e-05]
[1738250184889,4.1015,243.83,243.81,8.377e-05]
[1738250187491,0.02769563,243.85,243.81,8.377e-05]
[1738250187791,4.1015,243.82,243.81,8.377e-05]
[1738250189186,4.1036,243.7,243.62,2.9]
[1738250189389,17.38345188,243.8,243.6,156.98751991]
[1738250189691,2.165,243.79,243.6,156.98751991]
[1738250189892,4.103,243.74,243.63,4.1047]
[1738250190084,2.165,243.79,243.63,4.1047]
[1738250190289,2.165,243.79,243.6,156.98751991]
[1738250190484,0.02737151,243.73,243.69,0.03003215]
[1738250190891,4.1035,243.7,243.69,0.03003215]
[1738250191688,0.02737151,243.73,243.69,0.03003215]
[1738250192395,4.1042,243.66,243.57,4.1056]
[1738250192591,17.38345188,243.72,243.55,2.0196]
[1738250193489,0.02687443,243.66,243.61,0.02586057]
[1738250193894,17.38345188,243.64,243.5,1.9684]
[1738250194095,4.1057,243.58,243.5,1.9684]
[1738250194292,17.38345188,243.64,243.5,1.9684]
[1738250194592,4.1061,243.55,243.5,1.9684]
[1738250194891,17.38345188,243.55,243.41,139.60406803]
[1738250195089,4.1082,243.43,243.41,139.60406803]
[1738250195296,4.1082,243.43,243.36,162.31252349]
[1738250195301,17.38345188,243.43,243.36,107.52876803]
[1738250195692,0.030663,243.44,243.36,107.52876803]
[1738250197499,0.030663,243.44,243.32,4.1098]
[1738250197791,0.030663,243.44,243.31,17.38345188]
[1738250197991,0.030663,243.44,243.35,17.38345188]
[1738250198191,17.38345188,243.63,243.39,17.38345188]
[1738250198393,17.38345188,243.63,243.43,17.38345188]
[1738250198694,4.1053,243.6,243.47,4.1073]
[1738250199193,17.38345188,243.63,243.43,17.38345188]
[1738250199394,0.02876789,243.56,243.51,0.02639847]
[1738250201595,4.1061,243.55,243.51,0.02639847]
[1738250201999,17.38345188,243.55,243.51,0.02639847]
[1738250202199,4.1068,243.51,243.4,4.2432]
[1738250202498,17.38345188,243.51,243.3,2.96]
[1738250202698,4.1075,243.47,243.36,4.1092]
[1738250202894,17.38345188,243.47,243.31,2.1323]
[1738250203094,17.38345188,243.51,243.31,2.1323]
[1738250203302,0.03063393,243.41,243.37,4.1091]
[1738250203596,17.38345188,243.47,243.32,2.0783]
[1738250203800,0.02605355,243.41,243.32,2.0783]
[1738250204295,0.02605355,243.41,243.34,4.1094]
[1738250204495,0.02605355,243.41,243.32,2.0783]
[1738250204900,0.02605355,243.41,243.36,4.1092]
[1738250205198,0.02605355,243.41,243.32,2.0783]
[1738250205799,21.49035188,243.51,243.32,2.0783]
[1738250205800,17.38345188,243.51,243.32,2.0783]
[1738250206201,17.38345188,243.51,243.35,4.1093]
[1738250206401,17.38345188,243.51,243.32,2.0783]
[1738250206797,17.38345188,243.47,243.39,0.02931117]
[1738250206998,17.38345188,243.47,243.32,2.0783]
[1738250206999,17.38345188,243.43,243.32,2.0783]
[1738250207300,17.38345188,243.43,243.23,17.38345188]
[1738250207496,17.38345188,243.43,243.24,4.168]
[1738250208199,17.38345188,243.47,243.27,17.38345188]
[1738250208400,0.02801088,243.36,243.31,17.38345188]
[1738250208705,17.38345188,243.51,243.31,17.38345188]
[1738250208906,17.38345188,243.51,243.27,17.38345188]
[1738250209205,17.38345188,243.51,243.34,4.1096]
[1738250209507,17.38345188,243.51,243.24,21.55145188]
[1738250209799,4.1083,243.42,243.4,0.02882064]
[1738250209999,4.1083,243.42,243.24,21.55145188]
[1738250210199,0.02963501,243.45,243.24,21.55145188]
[1738250210200,17.38345188,243.47,243.24,21.55145188]
[1738250210400,17.38345188,243.47,243.39,0.02673373]
[1738250210700,17.38345188,243.47,243.24,21.55145188]
[1738250210701,17.38345188,243.42,243.24,21.55145188]
[1738250210904,17.38345188,243.42,243.24,4.168]
[1738250211407,4.1087,243.4,243.28,4.1105]
[1738250211598,17.38345188,243.42,243.24,4.168]
[1738250212101,0.02730304,243.35,243.27,4.1107]
[1738250212697,4.13680304,243.35,243.25,4.1111]
[1738250212902,0.02730304,243.35,243.24,4.168]
[1738250213208,17.38345188,243.46,243.28,17.38345188]
[1738250213405,4.1078,243.45,243.28,17.38345188]
[1738250213606,17.38345188,243.5,243.28,17.38345188]
[1738250214311,17.38345188,243.5,243.32,17.38345188]
[1738250214609,2.147,243.55,243.32,17.38345188]
[1738250214610,0.02656961,243.41,243.39,4.1087]
[1738250214812,17.38345188,243.54,243.37,0.02682715]
[1738250215009,17.38345188,243.54,243.32,17.38345188]
[1738250215311,17.38345188,243.5,243.31,2.94]
[1738250215606,4.1082,243.43,243.32,4.1099]
[1738250215910,0.02735123,243.4,243.35,0.03050824]
[1738250216112,17.38345188,243.54,243.35,0.03050824]
[1738250216313,4.1074,243.47,243.36,4.1091]
[1738250216513,17.38345188,243.54,243.31,2.94]
[1738250217316,0.0291568,243.45,243.4,0.02931957]
[1738250217614,0.16268,243.48,243.31,2.94]
[1738250217913,0.02636134,243.45,243.4,0.02922844]
[1738250218115,4.13416134,243.45,243.4,0.02922844]
[1738250218516,4.108,243.44,243.4,0.02922844]
[1738250218719,0.02636134,243.45,243.4,0.02922844]
[1738250219612,0.02636134,243.45,243.43,4.1081]
[1738250219821,0.16268,243.48,243.4,0.02922844]
[1738250220111,17.38345188,243.72,243.48,4.1071]
[1738250220112,4.1058,243.57,243.48,4.1071]
[1738250220313,2.074,243.66,243.45,17.38345188]
[1738250220314,17.38345188,243.64,243.45,17.38345188]
[1738250220513,17.38345188,243.68,243.45,17.38345188]
[1738250220820,4.0808,243.71,243.49,17.38345188]
[1738250221114,0.0270611,243.59,243.54,0.03149151]
[1738250221617,17.38345188,243.64,243.51,1.9643]
[1738250221810,4.1057,243.57,243.54,0.03058834]
[1738250222012,0.02626852,243.59,243.54,0.03058834]
[1738250222615,98.70345188,243.72,243.54,0.03058834]
[1738250222817,17.38345188,243.8,243.57,17.38345188]
[1738250223012,17.38345188,243.8,243.58,2.96]
[1738250223217,4.1027,243.75,243.6,4.1051]
[1738250223418,4.1027,243.75,243.61,2.0714]
[1738250223816,0.02948811,243.7,243.66,0.02706867]
[1738250225827,4.13308811,243.7,243.66,0.02706867]
[1738250226027,0.02948811,243.7,243.66,0.02706867]
[1738250226624,17.38345188,243.92,243.66,0.02706867]
[1738250226927,4.1001,243.91,243.77,21.48565188]
[1738250227131,4.1001,243.91,243.78,4.2294]
[1738250227329,17.38345188,243.96,243.78,4.2294]
[1738250227629,4.1004,243.89,243.78,4.2294]
[1738250227824,4.12981282,243.89,243.85,0.027356]
[1738250228021,0.02941282,243.89,243.85,0.027356]
[1738250229632,4.0989,243.98,243.85,0.027356]
[1738250230124,4.0988,243.99,243.83,32.42653217]
[1738250230327,28.32523217,244.05,243.83,32.42653217]
[1738250230528,28.32523217,244.09,243.87,28.32523217]
[1738250230929,0.02969608,244.0,243.96,0.02927391]
[1738250231225,28.32523217,244.09,243.96,0.02927391]
[1738250231529,0.0310833,244.0,243.96,0.02927391]
[1738250231724,4.099,243.98,243.96,0.02927391]
[1738250232129,0.02973324,244.0,243.83,28.32523217]
[1738250232330,4.0996,243.94,243.83,28.32523217]
[1738250232731,28.32523217,244.05,243.83,28.32523217]
[1738250232929,4.1006,243.88,243.8,3.0]
[1738250233128,28.32523217,243.97,243.8,3.0]
[1738250233336,28.32523217,243.93,243.79,2.0409]
[1738250233635,28.32523217,243.89,243.67,119.13107665]
[1738250233830,28.32523217,243.89,243.68,1.9838]
[1738250234637,4.1025,243.77,243.76,8.358e-05]
[1738250235128,28.32523217,243.85,243.68,1.9838]
[1738250235826,0.02803952,243.79,243.74,0.03049986]
[1738250237031,4.1024,243.77,243.74,0.03049986]
[1738250237338,0.02803952,243.79,243.74,0.03049986]
[1738250237638,4.1025,243.76,243.74,0.03049986]
[1738250238237,0.02803952,243.79,243.74,0.03049986]
[1738250238729,4.1024,243.77,243.74,0.03049986]
[1738250238928,0.02803952,243.79,243.74,0.03049986]
[1738250239740,0.02803952,243.79,243.59,28.32523217]
[1738250239944,28.32523217,243.76,243.55,28.32523217]
[1738250241132,0.02719691,243.68,243.63,0.02652171]
[1738250242542,28.32523217,243.85,243.63,28.35175388]
[1738250242737,4.1021,243.79,243.64,2.2325]
[1738250242935,28.32523217,243.85,243.63,28.32523217]
[1738250243139,28.32523217,243.85,243.53,3.0]
[1738250243140,4.1029,243.74,243.64,4.1045]
[1738250243333,28.32523217,243.8,243.59,28.32523217]
[1738250243735,0.02689202,243.72,243.67,0.0289377]
[1738250244143,4.1024,243.77,243.67,4.104]
[1738250244340,0.02926324,243.72,243.67,4.13381049]
[1738250244644,0.02926324,243.72,243.67,0.02981049]
[1738250246041,4.1035,243.71,243.67,0.02981049]
[1738250248348,0.02926324,243.72,243.67,0.02981049]
[1738250248643,0.02926324,243.72,243.54,6.3233]
[1738250249044,28.32523217,243.69,243.54,6.3233]
[1738250249345,28.32523217,243.69,243.54,4.283]
[1738250249746,28.32523217,243.69,243.54,8.3892]
[1738250249948,0.02810065,243.64,243.59,0.02936814]
[1738250251048,2.0757,243.76,243.63,4.1047]
[1738250251256,99.0,244.07,243.7,28.32523217]
[1738250251443,2.88192615,243.92,243.7,28.32523217]
[1738250251643,4.2835,243.92,243.72,4.1031]
[1738250252344,4.1015,243.82,243.72,4.1031]
[1738250252549,4.1015,243.82,243.8,0.02597626]
[1738250252753,4.1015,243.82,243.72,4.1031]
[1738250253049,4.1019,243.8,243.79,0.02666678]
[1738250253353,28.32523217,243.84,243.64,3.02]
[1738250253751,28.32523217,243.84,243.62,28.32523217]
[1738250253752,4.1028,243.75,243.62,28.32523217]
[1738250253953,2.0611,243.83,243.62,28.32523217]
[1738250254555,0.02589662,243.75,243.7,0.03154168]
[1738250256344,0.02589662,243.75,243.7,28.35677385]
[1738250256655,4.101,243.86,243.76,4.1025]
[1738250256855,28.32523217,243.97,243.74,28.32523217]
[1738250257453,4.1009,243.86,243.76,4.1025]